fUSD/lending_fUSD_20251222
["ID","MTS","AMOUNT","RATE_DAILY","PERIOD"]
[399466061,1766382642797,-500.0,0.00016399,2]
[399466062,1766382642807,-150.0,0.00016399,2]
[399466063,1766382642816,-551.73,0.00016408,2]
[399466064,1766382642825,-4670.0,0.00016426,2]
[399466065,1766382642835,-522.793359,0.00016437,2]
[399466066,1766382642845,-500.0,0.00016437,2]
[399466067,1766382642855,-500.0,0.00016437,2]
[399466068,1766382642864,-500.0,0.00016437,2]
[399466069,1766382642874,-500.0,0.00016438,2]
[399466070,1766382642883,-500.0,0.00016438,2]
[399466071,1766382642893,-500.0,0.00016438,2]
[399466072,1766382642902,-500.0,0.00016438,2]
[399466073,1766382642911,-500.0,0.00016438,2]
[399466074,1766382642921,-500.0,0.00016438,2]
[399466075,1766382642930,-500.0,0.00016438,2]
[399466076,1766382642939,-500.0,0.00016438,2]
[399466077,1766382642949,-500.0,0.00016438,2]
[399466078,1766382642963,-500.0,0.00016438,2]
[399466079,1766382642972,-500.0,0.00016438,2]
[399466080,1766382642982,-500.0,0.00016438,2]
[399466081,1766382642992,-500.0,0.00016438,2]
[399466082,1766382643003,-500.0,0.00016438,2]
[399466083,1766382643013,-500.0,0.00016438,2]
[399466085,1766382643023,-500.0,0.00016438,2]
[399466087,1766382643036,-500.0,0.00016438,2]
[399466089,1766382643046,-500.0,0.00016438,2]
[399466091,1766382643056,-500.0,0.00016438,2]
[399466094,1766382643066,-500.0,0.00016438,2]
[399466096,1766382643076,-500.0,0.00016438,2]
[399466098,1766382643086,-500.0,0.00016438,2]
[399466100,1766382643095,-500.0,0.00016438,2]
[399466102,1766382643105,-500.0,0.00016438,2]
[399466104,1766382643114,-500.0,0.00016438,2]
[399466105,1766382643124,-500.0,0.00016438,2]
[399466106,1766382643135,-500.0,0.00016438,2]
[399466107,1766382643144,-500.0,0.00016438,2]
[399466108,1766382643153,-500.0,0.00016438,2]
[399466109,1766382643163,-500.0,0.00016438,2]
[399466110,1766382643172,-500.0,0.00016438,2]
[399466111,1766382643182,-10430.17,0.00016438,2]
[399466112,1766382643193,-800.66640866,0.00016438,2]
[399466113,1766382643204,-2192.70775169,0.0001645,2]
[399466114,1766382643215,-500.0,0.00016473,2]
[399466115,1766382643225,-500.84493932,0.00016473,2]
[399466116,1766382643234,-500.53011343,0.00016473,2]
[399466117,1766382643243,-500.63864721,0.00016473,2]
[399466118,1766382643252,-500.0,0.00016473,2]
[399466119,1766382643263,-500.89063362,0.00016473,2]
[399466120,1766382643273,-500.23459526,0.00016473,2]
[399466121,1766382643284,-639.90034145,0.00016473,2]
[399466122,1766382643293,-500.93365607,0.00016473,2]
[399466123,1766382643302,-500.14110793,0.00016473,2]
[399466124,1766382643311,-500.0,0.00016473,2]
[399466125,1766382643320,-500.23431497,0.00016473,2]
[399466126,1766382643329,-500.0,0.00016473,2]
[399466127,1766382643338,-500.364387,0.00016473,2]
[399466128,1766382643347,-500.59656143,0.00016473,2]
[399466129,1766382643356,-500.25404697,0.00016473,2]
[399466130,1766382643366,-570.44343091,0.00016473,2]
[399466131,1766382643376,-162.4264826,0.00016473,2]
[399466132,1766382643385,-500.92519729,0.00016473,2]
[399466133,1766382643395,-500.71610448,0.00016473,2]
[399466134,1766382643405,-500.0,0.00016473,2]
[399466135,1766382643415,-519.00415051,0.00016473,2]
[399466136,1766382643424,-500.76356067,0.00016473,2]
[399466137,1766382643433,-160.22398459,0.00016473,2]
[399466138,1766382643443,-500.0,0.00016473,2]
[399466139,1766382643453,-500.26932841,0.00016473,2]
[399466140,1766382643463,-500.28027426,0.00016473,2]
[399466141,1766382643472,-500.4866391,0.00016473,2]
[399466142,1766382643481,-500.0,0.00016473,2]
[399466143,1766382643490,-500.23422882,0.00016473,2]
[399466144,1766382643500,-182.65808094,0.00016473,2]
[399466145,1766382643509,-500.40105858,0.00016473,2]
[399466146,1766382643518,-500.0,0.00016473,2]
[399466147,1766382643527,-500.0,0.00016473,2]
[399466148,1766382643537,-500.94017287,0.00016473,2]
[399466149,1766382643546,-160.22953204,0.00016473,2]
[399466150,1766382643555,-150.2134934,0.00016473,2]
[399466151,1766382643565,-500.31559723,0.00016473,2]
[399466152,1766382643574,-500.23816043,0.00016473,2]
[399466153,1766382643583,-160.22953259,0.00016473,2]
[399466154,1766382643593,-500.88851044,0.00016473,2]
[399466155,1766382643602,-500.0,0.00016473,2]
[399466156,1766382643611,-500.0,0.00016473,2]
[399466157,1766382643621,-500.5380025,0.00016473,2]
[399466158,1766382643630,-500.85006285,0.00016473,2]
[399466159,1766382643640,-500.0,0.00016473,2]
[399466160,1766382643649,-334.69874754,0.00016473,2]
[399466161,1766382643659,-500.0,0.00016473,2]
[399466162,1766382643668,-500.89704022,0.00016473,2]
[399466163,1766382643679,-160.23033873,0.00016473,2]
[399466164,1766382643689,-556.12570782,0.00016473,2]
[399466165,1766382643698,-500.0,0.00016473,2]
[399466166,1766382643707,-500.84177563,0.00016473,2]
[399466167,1766382643716,-500.0,0.00016473,2]
[399466168,1766382643725,-577.70558009,0.00016473,2]
[399466169,1766382643736,-500.0,0.00016473,2]
[399466170,1766382643745,-160.23136935,0.00016473,2]
[399466171,1766382643754,-500.0,0.00016473,2]
[399466172,1766382643764,-500.0,0.00016473,2]
[399466173,1766382643774,-500.0,0.00016473,2]
[399466174,1766382643783,-500.0,0.00016473,2]
[399466175,1766382643792,-500.0,0.00016473,2]
[399466176,1766382643802,-566.05199029,0.00016473,2]
[399466177,1766382643812,-500.0,0.00016473,2]
[399466178,1766382643823,-500.47037435,0.00016473,2]
[399466179,1766382643832,-500.19873097,0.00016473,2]
[399466180,1766382643843,-500.0,0.00016473,2]
[399466181,1766382643851,-500.0,0.00016473,2]
[399466182,1766382643860,-500.0,0.00016473,2]
[399466183,1766382643869,-500.69670875,0.00016473,2]
[399466184,1766382643879,-190.01,0.00016488,2]
[399466185,1766382643888,-4670.0,0.00016488,2]
[399466186,1766382643898,-237.4,0.00016505,2]
[399466187,1766382643907,-28242.37766081,0.00016516,2]
[399466188,1766382643916,-500.0,0.00016557,2]
[399466189,1766382643926,-2192.70775169,0.00016563,2]
[399466190,1766382643936,-4670.0,0.00016564,2]
[399466191,1766382643947,-4670.0,0.00016614,2]
[399466192,1766382643960,-2146.93,0.00016656,2]
[399466193,1766382643973,-3018.19191469,0.0001666,2]
[399466194,1766382643983,-2192.70775169,0.00016675,2]
[399466195,1766382643994,-164.38,0.00016712,2]
[399466196,1766382644004,-823.0,0.00016753,2]
[399466197,1766382644014,-4670.0,0.00016761,2]
[399466198,1766382644024,-2192.70775169,0.00016788,2]
[399466199,1766382644036,-4670.0,0.00016792,2]
[399466200,1766382644048,-1002.5,0.00016828,2]
[399466201,1766382644059,-7000.0,0.0001683,2]
[399466202,1766382644069,-500.0,0.00016836,2]
[399466203,1766382644079,-25000.0,0.00016838,3]
[399466204,1766382644088,-25000.0,0.00016847,3]
[399466205,1766382644097,-151.0,0.00016853,2]
[399466206,1766382644106,-25000.0,0.00016856,3]
[399466207,1766382644116,-200.0,0.00016863,2]
[399466208,1766382644127,-200.0,0.00016864,2]
[399466209,1766382644136,-200.0,0.00016864,2]
[399466210,1766382644147,-200.0,0.00016864,2]
[399466211,1766382644156,-200.0,0.00016864,2]
[399466212,1766382644165,-25000.0,0.00016865,3]
[399466213,1766382644175,-25000.0,0.00016874,3]
[399466214,1766382644185,-500.0,0.00016882,2]
[399466215,1766382644196,-500.0,0.00016882,2]
[399466216,1766382644205,-500.0,0.00016882,2]
[399466217,1766382644215,-500.0,0.00016882,2]
[399466218,1766382644224,-25000.0,0.00016882,3]
[399466219,1766382644235,-3292.0,0.0001689,2]
[399466220,1766382644247,-25000.0,0.00016891,3]
[399466221,1766382644475,-1859.68512571,0.00016899,2]
[399466222,1766382644485,-272.20622186,0.00016899,2]
[399466223,1766382644495,-255.64335402,0.00016899,2]
[399466224,1766382644504,-977.65674628,0.00016899,2]
[399466225,1766382644513,-1859.68512571,0.000169,2]
[399466226,1766382644524,-255.64335402,0.000169,2]
[399466227,1766382644533,-977.65674626,0.000169,2]
[399466228,1766382644543,-10000.0,0.000169,2]
[399466229,1766382644552,-25000.0,0.000169,3]
[399466230,1766382644561,-25000.0,0.000169,3]
[399466231,1766382644571,-1210.01152467,0.000169,2]
[399466232,1766382644581,-28242.37766081,0.000169,2]
[399466233,1766382644590,-352.88004125,0.000169,2]
[399466234,1766382644600,-1859.68512571,0.000169,2]
[399466235,1766382644609,-2192.70775169,0.000169,2]
[399466236,1766382644618,-255.64335402,0.000169,2]
[399466237,1766382644627,-977.65674626,0.000169,2]
[399466238,1766382644638,-10936.0,0.000169,2]
[399466239,1766382644647,-4670.0,0.00016909,2]
[399466240,1766382644656,-2146.93,0.0001693,2]
[399466241,1766382644666,-736.82314427,0.00016931,2]
[399466242,1766382644675,-201.47691223,0.00016951,2]
[399466243,1766382644684,-150.0,0.00016973,2]
[399466244,1766382644693,-304.0,0.00016986,2]
[399466245,1766382644702,-1490.09817043,0.00016989,2]
[399466246,1766382644711,-1490.09817043,0.0001699,2]
[399466247,1766382644721,-151.0,0.00016996,2]
[399466248,1766382644730,-151.0,0.00016997,2]
[399466249,1766382644739,-500.0,0.00016998,2]
[399466250,1766382644748,-500.0,0.00016998,2]
[399466251,1766382644758,-500.0,0.00016998,2]
[399466252,1766382644768,-500.0,0.00016998,2]
[399466253,1766382644778,-500.0,0.00016998,2]
[399466254,1766382644787,-500.0,0.00016998,2]
[399466255,1766382644796,-518.50192951,0.00016998,2]
[399466256,1766382644805,-451.43777448,0.00016998,2]
[399466257,1766382644814,-500.0,0.00016998,2]
[399466258,1766382644823,-500.0,0.00016998,2]
[399466259,1766382644832,-271.0,0.00016999,2]
[399466260,1766382644841,-507.17995557,0.00016999,2]
[399466261,1766382644850,-25905.51513286,0.00016999,2]
[399466262,1766382645390,-821.0,0.00016999,2]
[399466263,1766382645402,-19932.9263994,0.00016999,2]
[399466264,1766382645618,-500.0,0.00013643,2]
[399466265,1766382645627,-500.0,0.00013917,2]
[399466266,1766382645637,-500.0,0.00014191,2]
[399466267,1766382645646,-500.0,0.00014465,2]
[399466268,1766382645656,-500.0,0.00014739,2]
[399466269,1766382645665,-500.0,0.00015013,2]
[399466270,1766382645675,-104047.12216804,0.00016999,2]
[399466271,1766382645684,-5016.3031156,0.00016999,2]
[399466272,1766382645694,-1115.60769283,0.00016999,5]
[399466273,1766382645704,-1115.60769283,0.00016999,5]
[399466274,1766382645714,-1115.60769283,0.00016999,5]
[399466275,1766382645723,-1115.60769283,0.00016999,5]
[399466277,1766382645733,-1115.60769283,0.00016999,5]
[399466278,1766382645743,-1115.60769283,0.00016999,5]
[399466279,1766382645752,-1115.60769282,0.00016999,5]
[399466280,1766382645761,-364.46804823,0.00016999,2]
[399466281,1766382645771,-387.84444203,0.00016999,2]
[399466282,1766382645780,-626385.48538377,0.00016999,2]
[399466283,1766382645791,-71634.38849813,0.00016999,2]
[399466284,1766382645800,-4839.0485886,0.00016999,2]
[399466285,1766382645810,-17248.3413874,0.00016999,2]
[399466286,1766382645819,-55393.1890719,0.00016999,2]
[399466287,1766382645829,-300.0,0.00016999,2]
[399466288,1766382645838,-666.0,0.00016999,2]
[399466290,1766382645847,-300.0,0.00016999,2]
[399466291,1766382645856,-131944.8753816,0.00016999,2]
[399466292,1766382645866,-666.0,0.00016999,2]
[399466293,1766382645875,-300.0,0.00016999,2]
[399466294,1766382645884,-151.0,0.00016999,2]
[399466295,1766382645894,-151.0,0.00016999,2]
[399466296,1766382645903,-1914.3488922,0.00016999,2]
[399466297,1766382645914,-3163.5849756,0.00016999,2]
[399466298,1766382645924,-300.0,0.00016999,2]
[399466299,1766382645933,-666.0,0.00016999,2]
[399466300,1766382645943,-300.0,0.00016999,2]
[399466301,1766382645957,-151.0,0.00016999,2]
[399466302,1766382645970,-180.702146,0.00016999,2]
[399466303,1766382645982,-151.0,0.00016999,2]
[399466304,1766382645994,-399997.59176253,0.00017,2]
[399466305,1766382646003,-1000.0,0.00017,2]
[399466306,1766382646014,-1000.0,0.00017,2]
[399466307,1766382646030,-709.535,0.00017,2]
[399466308,1766382646040,-1000.0,0.00017,2]
[399466309,1766382646051,-1000.0,0.00017,2]
[399466310,1766382646062,-151.0,0.00017,2]
[399466311,1766382646074,-179.75476123,0.00017,2]
[399466312,1766382646083,-1000.0,0.00017,2]
[399466313,1766382646094,-929.933,0.00017,2]
[399466314,1766382646104,-1000.0,0.00017,2]
[399466315,1766382646114,-1000.0,0.00017,2]
[399466316,1766382646124,-743.412,0.00017,2]
[399466317,1766382646133,-6878766.78977803,0.00017,2]
[399466318,1766382646156,-4355.85,0.00017,2]
[399466319,1766382646170,-5406.50649121,0.00017,2]
[399466320,1766382646182,-1902.07,0.00017,2]
[399466321,1766382646205,-2860.95238278,0.00017,2]
[399466322,1766382646247,-500.0,0.00015287,2]
[399466323,1766382646257,-276.42636932,0.00017,2]
[399466324,1766382646268,-3464.4454591,0.00017,2]
[399466325,1766382646649,-500.0,0.00015561,2]
[399466326,1766382646659,-162.76,0.00015695,2]
[399466327,1766382646672,-302.05042645,0.00015695,2]
[399466328,1766382646684,-325.84803197,0.00015695,2]
[399466329,1766382646693,-500.0,0.00015835,2]
[399466330,1766382646702,-500.0,0.00016108,2]
[399466331,1766382646711,-500.0,0.00016382,2]
[399466332,1766382646720,-500.0,0.00016656,2]
[399466333,1766382646729,-500.0,0.0001693,2]
[399466334,1766382646738,-23155.46803912,0.00017,2]
[399466335,1766382647122,-790.65845842,0.00016298,2]
[399466336,1766382647132,-16013.43228873,0.00017,2]
[399466337,1766382647174,-468.53397315,0.00017,2]
[399466338,1766382647185,-1008.24074895,0.00017,2]
[399466339,1766382666027,4532.96051233,0.00013959,4]
[399466340,1766382961057,1028.06955985,0.00013642,3]
[399466341,1766382989221,999.0,0.00012805,3]
[399466342,1766383117376,500.0,0.00021726,30]
[399466343,1766383117966,500.0,0.00021753,30]
[399466344,1766383118021,500.0,0.00021726,30]
[399466345,1766383118084,500.0,0.00021726,30]
[399466346,1766383118140,500.0,0.00021781,30]
[399466347,1766383118198,500.0,0.00021753,30]
[399466348,1766383118251,500.0,0.00021753,30]
[399466349,1766383118312,500.0,0.00021808,30]
[399466350,1766383118380,500.0,0.00021781,30]
[399466351,1766383118437,500.0,0.00021781,30]
[399466352,1766383118498,573.52774177,0.00021808,30]
[399466353,1766383118551,500.0,0.00021836,30]
[399466354,1766383118605,500.0,0.00021808,30]
[399466355,1766383118687,291.42851787,0.00021863,30]
[399466356,1766383118743,500.0,0.00021836,30]
[399466357,1766383118809,500.0,0.00021863,30]
[399466358,1766383118939,490.31747829,0.0002189,30]
[399466359,1766383143078,5.71598463,0.00010001,2]
[399466360,1766383218742,500.0,0.00021726,30]
[399466361,1766383218913,500.0,0.00021753,30]
[399466362,1766383219063,500.0,0.00021781,30]
[399466363,1766383219165,500.0,0.00021726,30]
[399466364,1766383219227,500.0,0.00021808,30]
[399466365,1766383219319,500.0,0.00021726,30]
[399466366,1766383219392,500.0,0.00021836,30]
[399466367,1766383219461,500.0,0.00021753,30]
[399466368,1766383219525,500.0,0.00021726,30]
[399466369,1766383219594,504.18156138,0.00021753,30]
[399466370,1766383219658,500.0,0.00021863,30]
[399466371,1766383219731,500.0,0.00021781,30]
[399466372,1766383219785,500.0,0.00021753,30]
[399466373,1766383220124,500.0,0.0002189,30]
[399466374,1766383220213,500.0,0.00021808,30]
[399466375,1766383220268,315.0,0.00021918,30]
[399466376,1766383220321,500.0,0.00021781,30]
[399466377,1766383220399,500.0,0.00021836,30]
[399466378,1766383220461,500.0,0.00021808,30]
[399466379,1766383220561,500.0,0.00021863,30]
[399466380,1766383220630,500.0,0.00021836,30]
[399466381,1766383220725,391.00751825,0.00021863,30]
[399466382,1766383220812,507.3490248,0.0002189,30]
[399466383,1766383221391,500.0,0.00021726,30]
[399466384,1766383221555,500.0,0.00021753,30]
[399466385,1766383221709,500.0,0.00021781,30]
[399466386,1766383221862,500.0,0.00021808,30]
[399466387,1766383222244,632.76289655,0.00021836,30]
[399466388,1766383225716,150.0,0.00021726,30]
[399466389,1766383225870,150.0,0.00021753,30]
[399466390,1766383226024,150.0,0.00021781,30]
[399466391,1766383226179,232.97899023,0.00021808,30]
[399466392,1766383227443,150.0,0.00021726,30]
[399466393,1766383227605,201.41286545,0.00021753,30]
[399466394,1766383228386,500.0,0.00021726,30]
[399466395,1766383228469,500.0,0.00021753,30]
[399466396,1766383228565,500.0,0.00021781,30]
[399466397,1766383228646,205.6158133,0.00021808,30]
[399466398,1766383229040,500.0,0.00021726,30]
[399466399,1766383229204,500.0,0.00021753,30]
[399466400,1766383229367,172.78307317,0.00021781,30]
[399466401,1766383229429,216.07295226,0.00021726,30]
[399466402,1766383230111,150.0,0.00021726,30]
[399466403,1766383230236,152.12222658,0.00021726,30]
[399466404,1766383230296,150.0,0.00021753,30]
[399466405,1766383230418,167.29000094,0.00021781,30]
[399466406,1766383231241,156.44146346,0.00021726,30]
[399466407,1766383261090,762.0,0.00022,30]
[399466408,1766383324123,150.0,0.00021726,38]
[399466409,1766383324174,150.0,0.00021726,38]
[399466410,1766383324498,500.0,0.00021726,38]
[399466411,1766383324581,500.0,0.00021726,38]
[399466412,1766383324683,500.0,0.00021753,38]
[399466413,1766383324740,500.0,0.00021753,38]
[399466414,1766383325127,500.0,0.00021781,38]
[399466415,1766383325189,500.0,0.00021781,38]
[399466416,1766383325262,500.0,0.00021808,38]
[399466417,1766383325314,500.0,0.00021808,38]
[399466418,1766383325366,500.0,0.00021836,38]
[399466419,1766383325422,500.0,0.00021836,38]
[399466420,1766383325476,500.0,0.00021863,38]
[399466421,1766383325532,500.0,0.00021863,38]
[399466422,1766383325584,500.0,0.0002189,38]
[399466423,1766383325663,500.0,0.0002189,38]
[399466424,1766383325714,500.0,0.00021918,38]
[399466425,1766383325830,388.32277431,0.00021918,38]
[399466426,1766383326084,500.0,0.00021945,38]
[399466427,1766383326248,500.0,0.00021973,38]
[399466428,1766383326422,500.0,0.00022,38]
[399466429,1766383421628,268.23,0.00022,30]
[399466430,1766383467629,150.0,0.00021726,38]
[399466431,1766383467805,223.16612009,0.00021753,38]
[399466432,1766383468608,150.0,0.00021726,38]
[399466434,1766383529233,500.0,0.00021726,30]
[399466435,1766383529394,500.0,0.00021753,30]
[399466436,1766383529864,500.0,0.00021781,30]
[399466437,1766383529932,500.0,0.00021808,30]
[399466438,1766383530008,500.0,0.00021836,30]
[399466439,1766383530097,500.0,0.00021863,30]
[399466440,1766383530291,508.66497996,0.0002189,30]
[399466441,1766383532646,500.0,0.00021726,30]
[399466442,1766383532824,500.0,0.00021753,30]
[399466443,1766383532977,500.0,0.00021781,30]
[399466444,1766383533134,500.0,0.00021808,30]
[399466445,1766383533289,500.0,0.00021836,30]
[399466446,1766383533436,554.0,0.00021863,30]
[399466447,1766383535966,500.0,0.00021726,30]
[399466448,1766383536315,500.0,0.00021753,30]
[399466449,1766383536490,500.0,0.00021726,30]
[399466450,1766383536656,500.0,0.00021753,30]
[399466451,1766383536709,500.0,0.00021781,30]
[399466452,1766383536765,500.0,0.00021726,30]
[399466453,1766383536816,396.5190321,0.00021781,30]
[399466454,1766383536870,500.0,0.00021808,30]
[399466455,1766383536920,500.0,0.00021753,30]
[399466456,1766383536989,500.0,0.00021836,30]
[399466457,1766383537038,500.0,0.00021726,30]
[399466458,1766383537297,500.0,0.00021781,30]
[399466459,1766383537357,500.0,0.00021863,30]
[399466460,1766383537408,500.0,0.00021753,30]
[399466461,1766383537459,240.53313232,0.00021808,30]
[399466462,1766383537516,500.0,0.0002189,30]
[399466463,1766383537566,237.16668933,0.00021781,30]
[399466464,1766383537649,500.0,0.00021918,30]
[399466465,1766383537724,500.0,0.00021945,30]
[399466466,1766383537805,500.0,0.00021973,30]
[399466467,1766383537964,336.48142665,0.00022,30]
[399466468,1766383538114,500.0,0.00021726,30]
[399466469,1766383538262,500.0,0.00021753,30]
[399466470,1766383538329,500.0,0.00021726,30]
[399466471,1766383538406,500.0,0.00021781,30]
[399466472,1766383538472,500.0,0.00021753,30]
[399466473,1766383538610,500.0,0.00021808,30]
[399466474,1766383538914,500.0,0.00021781,30]
[399466475,1766383538974,500.0,0.00021836,30]
[399466476,1766383539061,500.0,0.00021808,30]
[399466477,1766383539142,354.0,0.00021863,30]
[399466478,1766383539212,500.0,0.00021836,30]
[399466479,1766383539291,500.0,0.00021863,30]
[399466480,1766383539356,500.0,0.0002189,30]
[399466481,1766383539442,170.7902367,0.00021918,30]
[399466495,1766383832087,-232.0,0.00010001,2]
[399466496,1766383832096,-94.71333278,0.00010001,2]
[399466497,1766383832256,-64.94068259,0.00010001,2]
[399466498,1766383832266,-300.0,0.00011,2]
[399466499,1766383832275,-1200.0,0.00011,2]
[399466500,1766383832284,-300.0,0.00011,2]
[399466518,1766383832294,-195.0,0.00011001,2]
[399466521,1766383832599,-250.0,0.00011001,2]
[399466523,1766383832608,-300.0,0.00011001,2]
[399466524,1766383832618,-195.0,0.00011001,2]
[399466526,1766383832627,-300.0,0.00011001,2]
[399466528,1766383832636,-195.0,0.00011001,2]
[399466530,1766383832646,-300.0,0.00011001,2]
[399466531,1766383832654,-195.0,0.00011001,2]
[399466532,1766383832664,-195.0,0.00011001,2]
[399466533,1766383832673,-300.0,0.00011001,2]
[399466534,1766383832683,-11990.05,0.00011682,2]
[399466535,1766383832692,-250.0,0.00011771,2]
[399466536,1766383832702,-1500.0,0.00011783,2]
[399466537,1766383832711,-500.0,0.00011839,2]
[399466538,1766383832721,-294.51,0.00011871,2]
[399466539,1766383832731,-420.0,0.00012088,2]
[399466540,1766383832740,-420.0,0.00012088,2]
[399466541,1766383832750,-1680.0,0.000121,2]
[399466542,1766383832759,-1000.0,0.00012245,2]
[399466543,1766383832768,-1600.0,0.00012312,2]
[399466544,1766383832777,-3126.65,0.00012316,2]
[399466545,1766383832787,-150.0,0.0001233,2]
[399466546,1766383832796,-9999.99,0.00012491,2]
[399466547,1766383832806,-299.99,0.00012491,2]
[399466548,1766383832816,-150.99,0.00012491,2]
[399466549,1766383832825,-3114.57,0.00012491,2]
[399466550,1766383832834,-5880.43860266,0.00012492,2]
[399466551,1766383832843,-500.0,0.00012501,2]
[399466552,1766383832852,-402.57758599,0.00012501,2]
[399466553,1766383832863,-500.0,0.00012501,2]
[399466554,1766383832872,-562.89033244,0.00012501,2]
[399466555,1766383832881,-500.0,0.00012501,2]
[399466556,1766383832890,-500.0,0.00012501,2]
[399466557,1766383832900,-624.83319403,0.00012501,2]
[399466558,1766383832909,-500.0,0.00012501,2]
[399466559,1766383832919,-500.0,0.00012501,2]
[399466560,1766383832928,-500.0,0.00012501,2]
[399466561,1766383832937,-144.26878335,0.00012501,2]
[399466562,1766383832949,-202.05380765,0.00012501,2]
[399466563,1766383832958,-500.0,0.00012501,2]
[399466564,1766383832967,-500.0,0.00012501,2]
[399466565,1766383832976,-500.0,0.00012501,2]
[399466566,1766383832985,-500.0,0.00012501,2]
[399466567,1766383832994,-500.0,0.00012501,2]
[399466568,1766383833003,-500.0,0.00012501,2]
[399466569,1766383833012,-500.0,0.00012501,2]
[399466570,1766383833022,-500.0,0.00012501,2]
[399466571,1766383833031,-500.0,0.00012501,2]
[399466572,1766383833039,-500.0,0.00012501,2]
[399466573,1766383833049,-500.0,0.00012501,2]
[399466574,1766383833058,-500.0,0.00012501,2]
[399466575,1766383833067,-500.0,0.00012501,2]
[399466576,1766383833076,-182.249,0.00012504,2]
[399466577,1766383833086,-160.3,0.00012504,2]
[399466578,1766383833095,-9999.99,0.00012504,2]
[399466579,1766383833104,-359.51458071,0.00012504,2]
[399466580,1766383833114,-26178.88528721,0.00012505,2]
[399466581,1766383833149,-520.56194573,0.00012505,2]
[399466582,1766383838094,-818.65679706,0.00012505,2]
[399466583,1766383838157,-724.27363088,0.00012505,2]
[399466589,1766383838499,-1411.68011215,0.00012505,2]
[399466591,1766383838510,-232.21770601,0.00012519,2]
[399466593,1766383838523,-249.17035215,0.00012519,2]
[399466595,1766383838532,-500.0,0.00012519,2]
[399466597,1766383838542,-63109.06,0.0001252,2]
[399466599,1766383838552,-312.0,0.00012524,2]
[399466602,1766383838562,-7683.37212937,0.00012722,2]
[399466605,1766383838572,-14147.26,0.00012805,2]
[399466607,1766383838581,-183.14,0.00012822,2]
[399466609,1766383838590,-28242.37766081,0.00012993,2]
[399466611,1766383838601,-551.73,0.00013075,2]
[399466613,1766383838612,-237.4,0.00013075,2]
[399466615,1766383838621,-190.01,0.00013076,2]
[399466617,1766383838632,-7683.37212936,0.00013186,2]
[399466618,1766383838642,-26170.03,0.0001327,2]
[399466620,1766383838653,-587.0,0.00013283,2]
[399466623,1766383838664,-587.0,0.00013283,2]
[399466624,1766383838674,-2351.0,0.0001331,2]
[399466626,1766383838683,-28242.37766081,0.00013482,2]
[399466628,1766383838693,-163.15562332,0.00013643,2]
[399466630,1766383838703,-172.81941254,0.00013643,2]
[399466632,1766383838713,-500.37919946,0.00013643,2]
[399466633,1766383838722,-500.0,0.00013643,2]
[399466634,1766383838732,-500.0,0.00013643,2]
[399466635,1766383838745,-500.0,0.00013643,2]
[399466636,1766383838755,-500.0,0.00013643,2]
[399466637,1766383838765,-500.0,0.00013643,2]